Workbook

Sheet ★別添1 A説明書 (hidden)
O1: 別添1
A3: 2023年度、2024年度及び2025年度円借款事業に係る調達関連一次チェック外部業務委託 （ロットA件数、3年分）
A6: 対象書類 | B6: 本体調達 | L6: コンサルタント雇用 | O6: 合計
B7: 事前資格審査（Ｐ/Ｑ）書類 | C7: Ｐ/Ｑ評価結果 | D7: 入札書類 | E7: 資格審査付入札書類 | F7: 入札評価結果（技術評価） | G7: 入札評価結果（価格評価） | H7: 入札評価結果（一札） | I7: 資格審査付入札評価結果（技術） | J7: 資格審査付入札評価結果（一札） | K7: 契約 | L7: 招聘状 | M7: コンサルタント評価結果 | N7: 契約
A8: A | B8: ='★別添1 全lot説明書'!B8 -> 31 | C8: ='★別添1 全lot説明書'!C8 -> 18 | D8: ='★別添1 全lot説明書'!D8 -> 29 | E8: ='★別添1 全lot説明書'!E8 -> 76 | F8: ='★別添1 全lot説明書'!F8 -> 21 | G8: ='★別添1 全lot説明書'!G8 -> 78 | H8: ='★別添1 全lot説明書'!H8 -> 4 | I8: ='★別添1 全lot説明書'!I8 -> 57 | J8: ='★別添1 全lot説明書'!J8 -> 3 | K8: ='★別添1 全lot説明書'!K8 -> 90 | L8: ='★別添1 全lot説明書'!L8 -> 39 | M8: ='★別添1 全lot説明書'!M8 -> 64 | N8: ='★別添1 全lot説明書'!N8 -> 42 | O8: =SUM(B8:N8) -> 552
L10: 上記件数は2022年11月末時点での見込みであり、JICAが委託先に対して最低委託件数として保証するものではない。また、委託契約期間中にJICAが必要と認める場合は、対象国を変更することがあり得る。

Sheet ★別添1 B説明書 (hidden)
O1: 別添1
A3: 2023年度、2024年度及び2025年度円借款事業に係る調達関連一次チェック外部業務委託 （ロットB件数、3年分）
A5: 対象書類 | B5: 本体調達 | L5: コンサルタント雇用 | O5: 合計
B6: 事前資格審査（Ｐ/Ｑ）書類 | C6: Ｐ/Ｑ評価結果 | D6: 入札書類 | E6: 資格審査付入札書類 | F6: 入札評価結果（技術評価） | G6: 入札評価結果（価格評価） | H6: 入札評価結果（一札） | I6: 資格審査付入札評価結果（技術） | J6: 資格審査付入札評価結果（一札） | K6: 契約 | L6: 招聘状 | M6: コンサルタント評価結果 | N6: 契約
A7: ='★別紙4 国別集計表(件数)2016'!B11 -> B | B7: ='★別紙4 国別集計表(件数)2016'!C11 -> 18 | C7: ='★別紙4 国別集計表(件数)2016'!D11 -> 29 | D7: ='★別紙4 国別集計表(件数)2016'!E11 -> 31 | E7: ='★別紙4 国別集計表(件数)2016'!F11 -> 87 | F7: ='★別紙4 国別集計表(件数)2016'!G11 -> 40 | G7: ='★別紙4 国別集計表(件数)2016'!H11 -> 107 | H7: ='★別紙4 国別集計表(件数)2016'!I11 -> 8 | I7: ='★別紙4 国別集計表(件数)2016'!J11 -> 84 | J7: ='★別紙4 国別集計表(件数)2016'!K11 -> 3 | K7: ='★別紙4 国別集計表(件数)2016'!L11 -> 39 | L7: ='★別紙4 国別集計表(件数)2016'!M11 -> 36 | M7: ='★別紙4 国別集計表(件数)2016'!N11 -> 64 | N7: ='★別紙4 国別集計表(件数)2016'!O11 -> 17 | O7: =SUM(B7:N7) -> 563
A8: ='★別紙4 国別集計表(件数)2016'!B12 -> B（西語・仏語） | B8: ='★別紙4 国別集計表(件数)2016'!C12 -> 8 | C8: ='★別紙4 国別集計表(件数)2016'!D12 -> 12 | D8: ='★別紙4 国別集計表(件数)2016'!E12 -> 10 | E8: ='★別紙4 国別集計表(件数)2016'!F12 -> 6 | F8: ='★別紙4 国別集計表(件数)2016'!G12 -> 13 | G8: ='★別紙4 国別集計表(件数)2016'!H12 -> 19 | H8: ='★別紙4 国別集計表(件数)2016'!I12 -> 1 | I8: ='★別紙4 国別集計表(件数)2016'!J12 -> 8 | J8: ='★別紙4 国別集計表(件数)2016'!K12 -> 2 | K8: ='★別紙4 国別集計表(件数)2016'!L12 -> 24 | L8: ='★別紙4 国別集計表(件数)2016'!M12 -> 7 | M8: ='★別紙4 国別集計表(件数)2016'!N12 -> 16 | N8: ='★別紙4 国別集計表(件数)2016'!O12 -> 12 | O8: =SUM(B8:N8) -> 138
L10: 上記件数は2022年11月末時点での見込みであり、JICAが委託先に対して最低委託件数として保証するものではない。また、委託契約期間中にJICAが必要と認める場合は、対象国を変更することがあり得る。

Sheet ★別添1 全lot説明書 (hidden)
O1: 別添1
A3: 2023年度、2024年度及び2025年度円借款事業に係る調達関連一次チェック外部業務委託 （ロット別件数、3年分）
A6: 対象書類 | B6: 本体調達 | L6: コンサルタント雇用 | O6: 合計
B7: 事前資格審査（Ｐ/Ｑ）書類 | C7: Ｐ/Ｑ評価結果 | D7: 入札書類 | E7: 資格審査付入札書類 | F7: 入札評価結果（技術評価） | G7: 入札評価結果（価格評価） | H7: 入札評価結果（一札） | I7: 資格審査付入札評価結果（技術） | J7: 資格審査付入札評価結果（一札） | K7: 契約 | L7: 招聘状 | M7: コンサルタント評価結果 | N7: 契約
A8: ='★別紙4 国別集計表(件数)2016'!B10 -> A | B8: ='★別紙4 国別集計表(件数)2016'!C10 -> 31 | C8: ='★別紙4 国別集計表(件数)2016'!D10 -> 18 | D8: ='★別紙4 国別集計表(件数)2016'!E10 -> 29 | E8: ='★別紙4 国別集計表(件数)2016'!F10 -> 76 | F8: ='★別紙4 国別集計表(件数)2016'!G10 -> 21 | G8: ='★別紙4 国別集計表(件数)2016'!H10 -> 78 | H8: ='★別紙4 国別集計表(件数)2016'!I10 -> 4 | I8: ='★別紙4 国別集計表(件数)2016'!J10 -> 57 | J8: ='★別紙4 国別集計表(件数)2016'!K10 -> 3 | K8: ='★別紙4 国別集計表(件数)2016'!L10 -> 90 | L8: ='★別紙4 国別集計表(件数)2016'!M10 -> 39 | M8: ='★別紙4 国別集計表(件数)2016'!N10 -> 64 | N8: ='★別紙4 国別集計表(件数)2016'!O10 -> 42 | O8: =SUM(B8:N8) -> 552
A9: ='★別紙4 国別集計表(件数)2016'!B11 -> B | B9: ='★別紙4 国別集計表(件数)2016'!C11 -> 18 | C9: ='★別紙4 国別集計表(件数)2016'!D11 -> 29 | D9: ='★別紙4 国別集計表(件数)2016'!E11 -> 31 | E9: ='★別紙4 国別集計表(件数)2016'!F11 -> 87 | F9: ='★別紙4 国別集計表(件数)2016'!G11 -> 40 | G9: ='★別紙4 国別集計表(件数)2016'!H11 -> 107 | H9: ='★別紙4 国別集計表(件数)2016'!I11 -> 8 | I9: ='★別紙4 国別集計表(件数)2016'!J11 -> 84 | J9: ='★別紙4 国別集計表(件数)2016'!K11 -> 3 | K9: ='★別紙4 国別集計表(件数)2016'!L11 -> 39 | L9: ='★別紙4 国別集計表(件数)2016'!M11 -> 36 | M9: ='★別紙4 国別集計表(件数)2016'!N11 -> 64 | N9: ='★別紙4 国別集計表(件数)2016'!O11 -> 17 | O9: =SUM(B9:N9) -> 563
A10: ='★別紙4 国別集計表(件数)2016'!B12 -> B（西語・仏語） | B10: ='★別紙4 国別集計表(件数)2016'!C12 -> 8 | C10: ='★別紙4 国別集計表(件数)2016'!D12 -> 12 | D10: ='★別紙4 国別集計表(件数)2016'!E12 -> 10 | E10: ='★別紙4 国別集計表(件数)2016'!F12 -> 6 | F10: ='★別紙4 国別集計表(件数)2016'!G12 -> 13 | G10: ='★別紙4 国別集計表(件数)2016'!H12 -> 19 | H10: ='★別紙4 国別集計表(件数)2016'!I12 -> 1 | I10: ='★別紙4 国別集計表(件数)2016'!J12 -> 8 | J10: ='★別紙4 国別集計表(件数)2016'!K12 -> 2 | K10: ='★別紙4 国別集計表(件数)2016'!L12 -> 24 | L10: ='★別紙4 国別集計表(件数)2016'!M12 -> 7 | M10: ='★別紙4 国別集計表(件数)2016'!N12 -> 16 | N10: ='★別紙4 国別集計表(件数)2016'!O12 -> 12 | O10: =SUM(B10:N10) -> 138
L12: 上記件数は2022年12月末時点での見込みであり、JICAが委託先に対して最低委託件数として保証するものではない。また、委託契約期間中にJICAが必要と認める場合は、対象国を変更することがあり得る。

Sheet ★別添4 ロットA 見積金額内訳 (hidden)
H1: 【参考情報 前回調達時の情報】
A2: 2023年度、2024年度及び2025年度円借款事業に係る調達関連一次チェック外部業務委託 見積もり金額内訳 | H2: 2023年度、2024年度及び2025年度円借款事業に係る調達関連一次チェック外部業務委託 見積もり金額内訳
F3: 【ロットＡ】 | M3: 【ロットＡ】 | O3: 実績額
C4: 調達手続き | D4: 件数見込 | E4: 業務単価 | F4: 計 | J4: 調達手続き | K4: 実施件数見込 | L4: 業務単価 | M4: 計 | O4: 2020～2022 | P4: 2017～2019
A5: 本体/資機材・土木工事施工業者船体手続き | B5: ① | C5: 事前資格審査（Ｐ/Ｑ）書類 | D5: ='★別紙4 国別集計表(件数)2016'!C$10 -> 31 | H5: 本体/資機材・土木工事施工業者船体手続き | I5: ① | J5: 事前資格審査（Ｐ/Ｑ）書類 | K5: =ROUND(Q5,0) -> 31 | P5: 26 | Q5: =P5*1.2 -> 31.2
B6: ② | C6: Ｐ/Ｑ評価結果 | D6: ='★別紙4 国別集計表(件数)2016'!D$10 -> 18 | I6: ② | J6: Ｐ/Ｑ評価結果 | K6: 18 | P6: 15 | Q6: =P6*1.2 -> 18
B7: ③ | C7: 入札書類 | D7: ='★別紙4 国別集計表(件数)2016'!E$10 -> 29 | I7: ③ | J7: 入札書類 | K7: 43 | P7: 36 | Q7: 43.2
B8: ④ | C8: 資格審査付入札書類 | D8: ='★別紙4 国別集計表(件数)2016'!F$10 -> 76 | I8: ④ | J8: 資格審査付入札書類 | K8: 103 | P8: 86 | Q8: 103.2
B9: ⑤ | C9: 入札評価結果（技術評価） | D9: ='★別紙4 国別集計表(件数)2016'!G$10 -> 21 | I9: ⑤ | J9: 入札評価結果（技術評価） | K9: 34 | P9: 28 | Q9: 33.6
B10: ⑥ | C10: 入札評価結果（価格評価） | D10: ='★別紙4 国別集計表(件数)2016'!H$10 -> 78 | I10: ⑥ | J10: 入札評価結果（価格評価） | K10: 98 | P10: 82 | Q10: 98.4
B11: ⑦ | C11: 入札評価結果（一札） | D11: ='★別紙4 国別集計表(件数)2016'!I$10 -> 4 | I11: ⑦ | J11: 入札評価結果（一札） | K11: 7 | P11: 6 | Q11: 7.2
B12: ⑧ | C12: 資格審査付入札評価結果（技術） | D12: ='★別紙4 国別集計表(件数)2016'!J$10 -> 57 | I12: ⑧ | J12: 資格審査付入札評価結果（技術） | K12: 82 | P12: 68 | Q12: 81.6
B13: ⑨ | C13: 資格審査付入札評価結果（一札） | D13: ='★別紙4 国別集計表(件数)2016'!K$10 -> 3 | I13: ⑨ | J13: 資格審査付入札評価結果（一札） | K13: 1 | P13: 1 | Q13: 1.2
B14: ⑩ | C14: 契約 | D14: ='★別紙4 国別集計表(件数)2016'!L$10 -> 90 | I14: ⑩ | J14: 契約 | K14: 115 | P14: 96 | Q14: 115.2
A15: コンサルタント選定手続き | B15: ⑪ | C15: 招聘状 | D15: ='★別紙4 国別集計表(件数)2016'!M$10 -> 39 | H15: コンサルタント選定手続き | I15: ⑪ | J15: 招聘状 | K15: 53 | P15: 44 | Q15: 52.8
B16: ⑫ | C16: コンサルタント評価結果 | D16: ='★別紙4 国別集計表(件数)2016'!N$10 -> 64 | I16: ⑫ | J16: コンサルタント評価結果 | K16: 78 | P16: 65 | Q16: 78
B17: ⑬ | C17: 契約 | D17: ='★別紙4 国別集計表(件数)2016'!O$10 -> 42 | I17: ⑬ | J17: 契約 | K17: 52 | P17: 43 | Q17: 51.6
C18: 小計(税抜） | J18: 小計(税抜）
C19: 消費税 10 ％ | J19: 消費税 10 ％
C20: 合計（税込） | J20: 合計（税込）
D21: =SUM(D5:D17) -> 552 | K21: =SUM(K5:K17) -> 715

Sheet ★別添4 ロットB 見積金額内訳
A2: 2023年度、2024年度及び2025年度円借款事業に係る調達関連一次チェック外部業務委託 見積もり金額内訳
F3: 【ロットB】
C4: 調達手続き | D4: 件数見込 | E4: 業務単価 | F4: 計
A5: 本体/資機材・土木工事施工業者船体手続き | B5: ① | C5: 事前資格審査（Ｐ/Ｑ）書類 | D5: ='★別紙4 国別集計表(件数)2016'!C$11 -> 18
B6: ① | C6: 事前資格審査（Ｐ/Ｑ）書類（西・仏語） | D6: 8
B7: ② | C7: Ｐ/Ｑ評価結果 | D7: ='★別紙4 国別集計表(件数)2016'!D$11 -> 29
B8: ② | C8: Ｐ/Ｑ評価結果（西・仏語） | D8: 12
B9: ③ | C9: 入札書類 | D9: ='★別紙4 国別集計表(件数)2016'!E$11 -> 31
B10: ③ | C10: 入札書類（西・仏語） | D10: 10
B11: ④ | C11: 資格審査付入札書類 | D11: ='★別紙4 国別集計表(件数)2016'!F$11 -> 87
B12: ④ | C12: 資格審査付入札書類（西・仏語） | D12: 6
B13: ⑤ | C13: 入札評価結果（技術評価） | D13: ='★別紙4 国別集計表(件数)2016'!G$11 -> 40
B14: ⑤ | C14: 入札評価結果（技術評価）（西・仏語） | D14: 13
B15: ⑥ | C15: 入札評価結果（価格評価） | D15: ='★別紙4 国別集計表(件数)2016'!H$11 -> 107
B16: ⑥ | C16: 入札評価結果（価格評価）（西・仏語） | D16: 19
B17: ⑦ | C17: 入札評価結果（一札） | D17: ='★別紙4 国別集計表(件数)2016'!I$11 -> 8
B18: ⑦ | C18: 入札評価結果（一札）（西・仏語） | D18: 1
B19: ⑧ | C19: 資格審査付入札評価結果（技術） | D19: ='★別紙4 国別集計表(件数)2016'!J$11 -> 84
B20: ⑧ | C20: 資格審査付入札評価結果（技術）（西・仏語） | D20: 8
B21: ⑨ | C21: 資格審査付入札評価結果（一札） | D21: ='★別紙4 国別集計表(件数)2016'!K$11 -> 3
B22: ⑨ | C22: 資格審査付入札評価結果（一札）（西・仏語） | D22: 2
B23: ⑩ | C23: 契約 | D23: ='★別紙4 国別集計表(件数)2016'!L$11 -> 39
B24: ⑩ | C24: 契約（西・仏語） | D24: 24
A25: コンサルタント選定手続き | B25: ⑪ | C25: 招聘状 | D25: ='★別紙4 国別集計表(件数)2016'!M$11 -> 36
B26: ⑪ | C26: 招聘状（西・仏語） | D26: 7
B27: ⑫ | C27: コンサルタント評価結果 | D27: ='★別紙4 国別集計表(件数)2016'!N$11 -> 64
B28: ⑫ | C28: コンサルタント評価結果（西・仏語） | D28: 16
B29: ⑬ | C29: 契約 | D29: ='★別紙4 国別集計表(件数)2016'!O$11 -> 17
B30: ⑬ | C30: 契約（西・仏語） | D30: 12
C31: 小計(税抜）
C32: 消費税 10 ％
C33: 合計（税込）

Sheet ★別紙4 国別集計表(件数)2016 (hidden)
Q1: 別紙4
A3: 2023年度、2024年度及び2025年度円借款事業に係る調達関連一次チェック外部業務委託 実施計画額積算内訳
A5: １．件数
A6: 算出根拠：各対象書類の直近6年間の1か月あたりの平均件数 * 36か月
A8: 件数 | B8: 対象書類 | C8: 本体調達 | M8: コンサルタント雇用 | P8: 小計 | Q8: 合計
C9: PQ書類 | D9: PQ評価 | E9: 入札書類 | F9: 資格審査付き 入札書類 | G9: 入札評価結果（技術評価） | H9: 入札評価結果（価格評価） | I9: 入札評価（1札） | J9: 資格審査付き 入札評価 （技術） | K9: 資格審査付き 入札評価 （一札） | L9: 契約 | M9: 招請状 | N9: 評価結果 | O9: 契約
A10: バングラデシュ、ベトナム、ミャンマー、印尼等 | B10: A | C10: =ROUNDUP((36*'【参考17FY~2022FY(11月末まで）件数実績データ'!O4),0) -> 31 | D10: =ROUNDUP((36*'【参考17FY~2022FY(11月末まで）件数実績データ'!O5),0) -> 18 | E10: =ROUNDUP((36*'【参考17FY~2022FY(11月末まで）件数実績データ'!O6),0) -> 29 | F10: =ROUNDUP((36*'【参考17FY~2022FY(11月末まで）件数実績データ'!O7),0) -> 76 | G10: =ROUNDUP((36*'【参考17FY~2022FY(11月末まで）件数実績データ'!O8),0) -> 21 | H10: =ROUNDUP((36*'【参考17FY~2022FY(11月末まで）件数実績データ'!O9),0) -> 78 | I10: =ROUNDUP((36*'【参考17FY~2022FY(11月末まで）件数実績データ'!O10),0) -> 4 | J10: =ROUNDUP((36*'【参考17FY~2022FY(11月末まで）件数実績データ'!O11),0) -> 57 | K10: =ROUNDUP((36*'【参考17FY~2022FY(11月末まで）件数実績データ'!O12),0) -> 3 | L10: =ROUNDUP((36*'【参考17FY~2022FY(11月末まで）件数実績データ'!O13),0) -> 90 | M10: =ROUNDUP((36*'【参考17FY~2022FY(11月末まで）件数実績データ'!O14),0) -> 39 | N10: =ROUNDUP((36*'【参考17FY~2022FY(11月末まで）件数実績データ'!O15),0) -> 64 | O10: =ROUNDUP((36*'【参考17FY~2022FY(11月末まで）件数実績データ'!O16),0) -> 42 | P10: =SUM(C10:O10) -> 552 | Q10: =SUM(C10:O10) -> 552
A11: インド、イラク、英語圏アフリカ等 | B11: B | C11: =ROUNDUP((36*'【参考17FY~2022FY(11月末まで）件数実績データ'!$O19),0) -> 18 | D11: =ROUNDUP((36*'【参考17FY~2022FY(11月末まで）件数実績データ'!$O20),0) -> 29 | E11: =ROUNDUP((36*'【参考17FY~2022FY(11月末まで）件数実績データ'!$O21),0) -> 31 | F11: =ROUNDUP((36*'【参考17FY~2022FY(11月末まで）件数実績データ'!$O22),0) -> 87 | G11: =ROUNDUP((36*'【参考17FY~2022FY(11月末まで）件数実績データ'!$O23),0) -> 40 | H11: =ROUNDUP((36*'【参考17FY~2022FY(11月末まで）件数実績データ'!$O24),0) -> 107 | I11: =ROUNDUP((36*'【参考17FY~2022FY(11月末まで）件数実績データ'!$O25),0) -> 8 | J11: =ROUNDUP((36*'【参考17FY~2022FY(11月末まで）件数実績データ'!$O26),0) -> 84 | K11: =ROUNDUP((36*'【参考17FY~2022FY(11月末まで）件数実績データ'!$O27),0) -> 3 | L11: =ROUNDUP((36*'【参考17FY~2022FY(11月末まで）件数実績データ'!$O28),0) -> 39 | M11: =ROUNDUP((36*'【参考17FY~2022FY(11月末まで）件数実績データ'!$O29),0) -> 36 | N11: =ROUNDUP((36*'【参考17FY~2022FY(11月末まで）件数実績データ'!$O30),0) -> 64 | O11: =ROUNDUP((36*'【参考17FY~2022FY(11月末まで）件数実績データ'!$O31),0) -> 17 | P11: =SUM(C11:O11) -> 563
A12: 西語・仏語 | B12: B（西語・仏語） | C12: =ROUNDUP((36*'【参考17FY~2022FY(11月末まで）件数実績データ'!O34),0) -> 8 | D12: =ROUNDUP((36*'【参考17FY~2022FY(11月末まで）件数実績データ'!O35),0) -> 12 | E12: =ROUNDUP((36*'【参考17FY~2022FY(11月末まで）件数実績データ'!O36),0) -> 10 | F12: =ROUNDUP((36*'【参考17FY~2022FY(11月末まで）件数実績データ'!O37),0) -> 6 | G12: =ROUNDUP((36*'【参考17FY~2022FY(11月末まで）件数実績データ'!O38),0) -> 13 | H12: =ROUNDUP((36*'【参考17FY~2022FY(11月末まで）件数実績データ'!O39),0) -> 19 | I12: =ROUNDUP((36*'【参考17FY~2022FY(11月末まで）件数実績データ'!O40),0) -> 1 | J12: =ROUNDUP((36*'【参考17FY~2022FY(11月末まで）件数実績データ'!O41),0) -> 8 | K12: =ROUNDUP((36*'【参考17FY~2022FY(11月末まで）件数実績データ'!O42),0) -> 2 | L12: =ROUNDUP((36*'【参考17FY~2022FY(11月末まで）件数実績データ'!O43),0) -> 24 | M12: =ROUNDUP((36*'【参考17FY~2022FY(11月末まで）件数実績データ'!O44),0) -> 7 | N12: =ROUNDUP((36*'【参考17FY~2022FY(11月末まで）件数実績データ'!O45),0) -> 16 | O12: =ROUNDUP((36*'【参考17FY~2022FY(11月末まで）件数実績データ'!O46),0) -> 12 | P12: =SUM(C12:O12) -> 138 | Q12: =P11+P12 -> 701
B13: 合計 | C13: =SUM(C10:C12) -> 57 | D13: 59 | E13: 70 | F13: 169 | G13: 74 | H13: 204 | I13: 13 | J13: 149 | K13: 8 | L13: 153 | M13: 82 | N13: 144 | O13: 71 | Q13: =SUM(Q10:Q12) -> 1253
B14: 割合 | C14: =C13/$Q$13 -> 0.04549082203 | D14: 0.04708699122 | E14: 0.05586592179 | F14: 0.1348762969 | G14: 0.05905826018 | H14: 0.1628092578 | I14: 0.01037509976 | J14: 0.1189146049 | K14: 0.006384676776 | L14: 0.1221069433 | M14: 0.06544293695 | N14: 0.114924182 | O14: 0.05666400638 | Q14: =Q13/$Q$13 -> 1
A16: ２．単価：直近の2契約（2017-2019年度ならびに2014-2016年度の契約）で使用された両契約の単価変動を加味し算出（詳細 別紙4-1参照）
A18: 金額（JPY) | B18: 単価 A/B | C18: ='★別紙4-1 単価表'!B26 -> 258000 | D18: ='★別紙4-1 単価表'!B28 -> 318000 | E18: ='★別紙4-1 単価表'!B31 -> 492000 | F18: ='★別紙4-1 単価表'!B27 -> 750000 | G18: ='★別紙4-1 単価表'!B33 -> 240000 | H18: ='★別紙4-1 単価表'!B34 -> 240000 | I18: ='★別紙4-1 単価表'!B32 -> 480000 | J18: ='★別紙4-1 単価表'!B30 -> 558000 | K18: ='★別紙4-1 単価表'!B29 -> 798000 | L18: ='★別紙4-1 単価表'!B35 -> 288000 | M18: ='★別紙4-1 単価表'!B36 -> 258000 | N18: ='★別紙4-1 単価表'!B37 -> 246000 | O18: ='★別紙4-1 単価表'!B38 -> 214800 | P18: 小計 | Q18: 合計 税抜
B19: 単価 C | C19: ='★別紙4-1 単価表'!C26 -> 300000 | D19: ='★別紙4-1 単価表'!C28 -> 360000 | E19: ='★別紙4-1 単価表'!C31 -> 540000 | F19: ='★別紙4-1 単価表'!C27 -> 840000 | G19: ='★別紙4-1 単価表'!C33 -> 288000 | H19: ='★別紙4-1 単価表'!C34 -> 288000 | I19: ='★別紙4-1 単価表'!C32 -> 576000 | J19: ='★別紙4-1 単価表'!C30 -> 648000 | K19: ='★別紙4-1 単価表'!C29 -> 936000 | L19: ='★別紙4-1 単価表'!C35 -> 336000 | M19: ='★別紙4-1 単価表'!C36 -> 300000 | N19: ='★別紙4-1 単価表'!C37 -> 288000 | O19: ='★別紙4-1 単価表'!C38 -> 264000
A20: バングラデシュ、ベトナム、ミャンマー、印尼等 | B20: A | C20: =C18*C10 -> 7998000 | D20: 5724000 | E20: 14268000 | F20: 57000000 | G20: 5040000 | H20: 18720000 | I20: 1920000 | J20: 31806000 | K20: 2394000 | L20: 25920000 | M20: 10062000 | N20: 15744000 | O20: 9021600 | P20: =SUM(C20:O20) -> 205617600 | Q20: =SUM(C20:O20) -> 205617600
A21: インド、イラク、英語圏アフリカ等 | B21: B | C21: =C18*C11 -> 4644000 | D21: 9222000 | E21: 15252000 | F21: 65250000 | G21: 9600000 | H21: 25680000 | I21: 3840000 | J21: 46872000 | K21: 2394000 | L21: 11232000 | M21: 9288000 | N21: 15744000 | O21: 3651600 | P21: =SUM(C21:O21) -> 222669600
A22: 西語・仏語 | B22: B（西語・仏語） | C22: =C19*C12 -> 2400000 | D22: 4320000 | E22: 5400000 | F22: 5040000 | G22: 3744000 | H22: 5472000 | I22: 576000 | J22: 5184000 | K22: 1872000 | L22: 8064000 | M22: 2100000 | N22: 4608000 | O22: 3168000 | P22: =SUM(C22:O22) -> 51948000 | Q22: =P21+P22 -> 274617600
B23: 合計 | C23: =SUM(C20:C22) -> 15042000 | D23: =SUM(D20:D22) -> 19266000 | E23: 34920000 | F23: 127290000 | G23: 18384000 | H23: 49872000 | I23: 6336000 | J23: 83862000 | K23: 6660000 | L23: 45216000 | M23: 21450000 | N23: 36096000 | O23: 15841200 | Q23: =SUM(Q20:Q22) -> 480235200
B24: 割合 | C24: =C23/$Q$23 -> 0.03132215215 | D24: 0.04011784226 | E24: 0.07271436996 | F24: 0.2650576218 | G24: 0.03828124219 | H24: 0.1038491139 | I24: 0.01319353517 | J24: 0.1746269328 | K24: 0.01386820458 | L24: 0.09415386461 | M24: 0.04466561385 | N24: 0.07516317005 | O24: 0.0329863367 | Q24: =Q23/$Q$23 -> 1
N27: 年度別概算額
O28: ロットA | P28: ロットB | Q28: 合計
N29: 2023年度 | O29: =ROUND($Q$20*(12/37),0) -> 66686789 | P29: =ROUNDUP($Q$22*(12/37),0) -> 89065168 | Q29: =O29+P29 -> 155751957
N30: 2024年度 | O30: =ROUND($Q$20*(12/37),0) -> 66686789 | P30: =ROUNDUP($Q$22*(12/37),0) -> 89065168 | Q30: =O30+P30 -> 155751957
N31: 2025年度 | O31: =ROUND($Q$20*(12/37),0) -> 66686789 | P31: 89065168 | Q31: =O31+P31 -> 155751957
N32: 2026年度 | O32: =ROUNDUP($Q$20*(1/37),0) -> 5557233 | P32: =(ROUNDDOWN($Q$22*(1/37),0))-1 -> 7422096 | Q32: =O32+P32 -> 12979329
N33: 合計 | O33: =SUM(O29:O32) -> 205617600 | P33: =SUM(P29:P32) -> 274617600 | Q33: =SUM(Q29:Q32) -> 480235200

Sheet ★別紙4-1 単価表 (hidden)
T1: 別紙4-1
A2: 1. FY 2020-2022 契約単価ならびにFY 2017-2019の契約単価は下表のとおり。
B3: FY 2023-2025向け参考見積 前契約とのエスカレ | H3: FY 2020-2022 契約単価および前契約とのエスカレ％ | N3: FY 2017-2019 契約単価 | Q3: FY 2014-2016 契約単価 | S3: FY 2013-2015 契約単価
A4: 書類名 | B4: SGS | C4: ｴｽｶﾚ% | D4: JICS | E4: ｴｽｶﾚ% | F4: 特殊言語 (JICS) | G4: ｴｽｶﾚ% | H4: A(SGS) | I4: ｴｽｶﾚ% | J4: B(JICS) | K4: ｴｽｶﾚ% | L4: 特殊言語 (JICS) | M4: ｴｽｶﾚ% | N4: A(JICS) | O4: B(JICS) | P4: 特殊言語 (JICS) | Q4: A(SGS) | R4: B(JICS) | S4: A(SGS) | T4: B(JICS)
A5: 事前資格審査(P/Q)書類 | B5: 205428 | C5: =B5/H5 -> 1.2 | D5: 258000 | E5: =D5/J5 -> 1.2 | F5: 300000 | G5: =F5/L5 -> 1.2 | H5: 171190 | J5: 215000 | K5: =J5/O5 -> 1 | L5: 250000 | M5: =L5/P5 -> 1 | N5: 215000 | O5: 215000 | P5: 250000 | Q5: 200700 | R5: 210000 | S5: 237300 | T5: 220000
A6: 資格審査付入札書類 | B6: 616289 | C6: 1.200000389 | D6: 750000 | E6: 1.2 | F6: 840000 | G6: =F6/L6 -> 1.2 | H6: 513574 | J6: 625000 | K6: 1.041666667 | L6: 700000 | M6: 1.044776119 | N6: 600000 | O6: 600000 | P6: 670000 | Q6: 535200 | R6: 590000 | S6: =S5+S10 -> 632800 | T6: =T5+T10 -> 600000
A7: P/Q評価結果 | B7: 205429 | C7: 1.199998832 | D7: 318000 | E7: 1.2 | F7: 360000 | G7: 1.2 | H7: 171191 | J7: 265000 | K7: 1 | L7: 300000 | M7: 1 | N7: 265000 | O7: 265000 | P7: 300000 | Q7: 200700 | R7: 260000 | S7: 237300 | T7: 260000
A8: 資格審査付入札評価結果（一札） | B8: 684764 | C8: 1.199999299 | D8: 798000 | E8: 1.2 | F8: 936000 | G8: 1.2 | H8: 570637 | J8: 665000 | K8: 1.031007752 | L8: 780000 | M8: 1.04 | N8: 645000 | O8: 645000 | P8: 750000 | Q8: 535200 | R8: 630000 | S8: =S7+S11 -> 553700 | T8: =T7+T11 -> 600000
A9: 資格審査付入札評価結果（技術） | B9: 479335 | C9: 1.199999499 | D9: 558000 | E9: 1.2 | F9: 648000 | G9: 1.2 | H9: 399446 | J9: 465000 | K9: 1.010869565 | L9: 540000 | M9: 1.018867925 | N9: 460000 | O9: 460000 | P9: 530000 | Q9: 367950 | R9: 450000 | S9: =S7+S12 -> 395500 | T9: =T7+T12 -> 430000
A10: 入札書類 | B10: 410858 | C10: 1.199998832 | D10: 492000 | E10: 1.2 | F10: 540000 | G10: 1.2 | H10: 342382 | J10: 410000 | K10: 1.064935065 | L10: 450000 | M10: 1.071428571 | N10: 385000 | O10: 385000 | P10: 420000 | Q10: 334500 | R10: 380000 | S10: 395500 | T10: 380000
A11: 入札評価結果（一札） | B11: 479335 | C11: 1.199999499 | D11: 480000 | E11: 1.2 | F11: 576000 | G11: 1.2 | H11: 399446 | J11: 400000 | K11: 1.052631579 | L11: 480000 | M11: 1.066666667 | N11: 380000 | O11: 380000 | P11: 450000 | Q11: 334500 | R11: 370000 | S11: 316400 | T11: 340000
A12: 入札評価結果（技術評価） | B12: 273906 | C12: 1.2 | D12: 240000 | E12: 1.2 | F12: 288000 | G12: 1.2 | H12: 228255 | J12: 200000 | K12: 1.025641026 | L12: 240000 | M12: 1.043478261 | N12: 195000 | O12: 195000 | P12: 230000 | Q12: =Q11/2 -> 167250 | R12: 190000 | S12: =S11/2 -> 158200 | T12: =T11/2 -> 170000
A13: 入札評価結果（価格評価） | B13: 205429 | C13: 1.199998832 | D13: 240000 | E13: 1.2 | F13: 288000 | G13: 1.2 | H13: 171191 | J13: 200000 | K13: 1.081081081 | L13: 240000 | M13: 1.090909091 | N13: 185000 | O13: 185000 | P13: 220000 | Q13: =Q11/2 -> 167250 | R13: 180000 | S13: =S11/2 -> 158200 | T13: =T11/2 -> 170000
A14: 本体契約 | B14: 205429 | C14: 1.199998832 | D14: 288000 | E14: 1.2 | F14: 336000 | G14: 1.2 | H14: 171191 | J14: 240000 | K14: 1.021276596 | L14: 280000 | M14: 1.037037037 | N14: 235000 | O14: 235000 | P14: 270000 | Q14: 200700 | R14: 230000 | S14: 237300 | T14: 200000
A15: コンサル招請状 | B15: 273907 | C15: 1.199999124 | D15: 258000 | E15: 1.2 | F15: 300000 | G15: 1.2 | H15: 228256 | J15: 215000 | K15: 1 | L15: 250000 | M15: 1 | N15: 215000 | O15: 215000 | P15: 250000 | Q15: 267600 | R15: 210000 | S15: 316400 | T15: 220000
A16: コンサル評価結果 | B16: 205429 | C16: 1.199998832 | D16: 246000 | E16: 1.2 | F16: 288000 | G16: 1.2 | H16: 171191 | J16: 205000 | K16: 1 | L16: 240000 | M16: 1 | N16: 205000 | O16: 205000 | P16: 240000 | Q16: 200700 | R16: 200000 | S16: 237300 | T16: 230000
A17: コンサル契約 | B17: 205428 | C17: 1.2 | D17: 214800 | E17: 1.2 | F17: 264000 | G17: 1.2 | H17: 171190 | J17: 179000 | K17: 1.084848485 | L17: 220000 | M17: 1.1 | N17: 165000 | O17: 165000 | P17: 200000 | Q17: 200700 | R17: 160000 | S17: 237300 | T17: 156000
J18: 平均ｴｽｶﾚ% | K18: =AVERAGE(K5:K17) -> 1.031842909 | L18: 平均ｴｽｶﾚ% | M18: =AVERAGE(M5:M17) -> 1.039474129
A20: 2. 今次契約における想定単価
A21: ロットA・ロットB ：JICS社の参考見積の単価を反映。
A22: ロットC ：JICS社の参考見積の単価を反映。
A24: 書類名 | B24: A/B | C24: 特殊言語
B25: 参考見積ﾍﾞｰｽ | C25: 参考見積ﾍﾞｰｽ
A26: 事前資格審査(P/Q)書類 | B26: 258000 | C26: =F5 -> 300000
A27: 資格審査付入札書類 | B27: 750000 | C27: =F6 -> 840000
A28: P/Q評価結果 | B28: 318000 | C28: 360000
A29: 資格審査付入札評価結果（一札） | B29: 798000 | C29: 936000
A30: 資格審査付入札評価結果（技術） | B30: 558000 | C30: 648000
A31: 入札書類 | B31: 492000 | C31: 540000
A32: 入札評価結果（一札） | B32: 480000 | C32: 576000
A33: 入札評価結果（技術評価） | B33: 240000 | C33: 288000
A34: 入札評価結果（価格評価） | B34: 240000 | C34: 288000
A35: 本体契約 | B35: 288000 | C35: 336000
A36: コンサル招請状 | B36: 258000 | C36: 300000
A37: コンサル評価結果 | B37: 246000 | C37: 288000
A38: コンサル契約 | B38: 214800 | C38: 264000

Sheet 【参考17FY~2022FY(11月末まで）件数実績データ (hidden)
A1: 一次チェック業務 過去の実績件数推移
A2: 項目 | E2: 2017年度～2019年度契約実績 | J2: 2020年度～2022年度契約実績
A3: ロットA | C3: 調達手続き | E3: 2017年度実績 | F3: 2018年度実績 | G3: 2019年度実績 | H3: 合計 | I3: 実施件数見込 | J3: 2020年度実績 | K3: 2021年度実績 | L3: 2022年度実績 *11/29現在 | M3: 合計 | N3: 実施件数見込 | O3: 2017FY～2022FY(11月末時点まで） 1ヶ月あたり平均件数
B4: 本体/資機 | C4: ① | D4: 事前資格審査（Ｐ/Ｑ）書類 | E4: 5 | F4: 13 | G4: 10 | H4: =SUM(E4:G4) -> 28 | I4: 42 | J4: 5 | K4: 9 | L4: 16 | M4: =SUM(J4:L4) -> 30 | N4: 31 | O4: =(H4+M4)/68 -> 0.8529411765
C5: ② | D5: Ｐ/Ｑ評価結果 | E5: 2 | F5: 11 | G5: 5 | H5: =SUM(E5:G5) -> 18 | I5: 84 | J5: 2 | K5: 9 | L5: 5 | M5: =SUM(J5:L5) -> 16 | N5: 18 | O5: =(H5+M5)/68 -> 0.5
C6: ③ | D6: 入札書類 | E6: 7 | F6: 19 | G6: 13 | H6: 39 | I6: 90 | J6: 4 | K6: 6 | L6: 4 | M6: 14 | N6: 43 | O6: =(H6+M6)/68 -> 0.7794117647
C7: ④ | D7: 資格審査付入札書類 | E7: 38 | F7: 30 | G7: 28 | H7: 96 | I7: 36 | J7: 21 | K7: 17 | L7: 9 | M7: 47 | N7: 103 | O7: =(H7+M7)/68 -> 2.102941176
B8: 材・土木工 | C8: ⑤ | D8: 入札評価結果（技術評価） | E8: 8 | F8: 5 | G8: 15 | H8: 28 | I8: 72 | J8: 3 | K8: 2 | L8: 6 | M8: 11 | N8: 34 | O8: =(H8+M8)/68 -> 0.5735294118
B9: 事施工業者 船体手続き | C9: ⑥ | D9: 入札評価結果（価格評価） | E9: 30 | F9: 36 | G9: 35 | H9: 101 | I9: 30 | J9: 10 | K9: 17 | L9: 18 | M9: 45 | N9: 98 | O9: 2.147058824
C10: ⑦ | D10: 入札評価結果（一札） | E10: 2 | F10: 2 | G10: 2 | H10: 6 | I10: 30 | J10: 0 | K10: 0 | L10: 0 | M10: 0 | N10: 7 | O10: 0.08823529412
C11: ⑧ | D11: 資格審査付入札評価結果（技術） | E11: 22 | F11: 29 | G11: 21 | H11: 72 | I11: 48 | J11: 10 | K11: 23 | L11: 2 | M11: 35 | N11: 82 | O11: 1.573529412
C12: ⑨ | D12: 資格審査付入札評価結果（一札） | E12: 1 | F12: 1 | G12: 0 | H12: 2 | I12: 6 | J12: 1 | K12: 0 | L12: 1 | M12: 2 | N12: 1 | O12: 0.05882352941
C13: ⑩ | D13: 契約 | E13: 41 | F13: 42 | G13: 34 | H13: 117 | I13: 138 | J13: 22 | K13: 15 | L13: 15 | M13: 52 | N13: 115 | O13: 2.485294118
B14: コンサルタン ト選定手続 | C14: ⑪ | D14: 招聘状 | E14: 16 | F14: 24 | G14: 13 | H14: 53 | I14: 30 | J14: 10 | K14: 6 | L14: 3 | M14: 19 | N14: 53 | O14: 1.058823529
C15: ⑫ | D15: コンサルタント評価結果 | E15: 28 | F15: 25 | G15: 24 | H15: 77 | I15: 120 | J15: 20 | K15: 17 | L15: 6 | M15: 43 | N15: 78 | O15: 1.764705882
B16: き | C16: ⑬ | D16: 契約 | E16: 18 | F16: 20 | G16: 12 | H16: 50 | I16: 72 | J16: 13 | K16: 10 | L16: 6 | M16: 29 | N16: 52 | O16: 1.161764706
E17: =SUM(E4:E16) -> 218 | F17: =SUM(F4:F16) -> 257 | G17: 212 | H17: 687 | I17: =SUM(I4:I16) -> 798 | J17: =SUM(J4:J16) -> 121 | K17: =SUM(K4:K16) -> 131 | L17: 91 | M17: 343 | N17: =SUM(N4:N16) -> 715
A18: ロットB | C18: 調達手続き | E18: 2020年度実績 | F18: 2021年度実績 | G18: 2022年度実績 | H18: 合計 | I18: 実施件数見込 | J18: 2020年度実績 | K18: 2021年度実績 | L18: 2022年度実績*11/29現在 | M18: 合計 | N18: 実施件数見込
B19: 本体/資機 | C19: ① | D19: 事前資格審査（Ｐ/Ｑ）書類 | E19: 7 | F19: 6 | G19: 13 | H19: =SUM(E19:G19) -> 26 | I19: 48 | J19: 3 | K19: 3 | L19: 1 | M19: =SUM(J19:L19) -> 7 | N19: 30 | O19: =(H19+M19)/68 -> 0.4852941176
C20: ② | D20: Ｐ/Ｑ評価結果 | E20: 20 | F20: 11 | G20: 7 | H20: =SUM(E20:G20) -> 38 | I20: 108 | J20: 10 | K20: 2 | L20: 3 | M20: =SUM(J20:L20) -> 15 | N20: 42 | O20: =(H20+M20)/68 -> 0.7794117647
C21: ③ | D21: 入札書類 | E21: 12 | F21: 10 | G21: 14 | H21: 36 | I21: 84 | J21: 15 | K21: 6 | L21: 0 | M21: 21 | N21: 44 | O21: 0.8382352941
C22: ④ | D22: 資格審査付入札書類 | E22: 33 | F22: 38 | G22: 31 | H22: 102 | I22: 138 | J22: 22 | K22: 18 | L22: 21 | M22: 61 | N22: 106 | O22: 2.397058824
B23: 材・土木工 | C23: ⑤ | D23: 入札評価結果（技術評価） | E23: 20 | F23: 20 | G23: 17 | H23: 57 | I23: 108 | J23: 9 | K23: 5 | L23: 3 | M23: 17 | N23: 79 | O23: 1.088235294
B24: 事施工業者 船体手続き | C24: ⑥ | D24: 入札評価結果（価格評価） | E24: 42 | F24: 41 | G24: 42 | H24: 125 | I24: 54 | J24: 34 | K24: 30 | L24: 12 | M24: 76 | N24: 131 | O24: 2.955882353
C25: ⑦ | D25: 入札評価結果（一札） | E25: 7 | F25: 2 | G25: 2 | H25: 11 | I25: 30 | J25: 3 | K25: 1 | L25: 0 | M25: 4 | N25: 12 | O25: 0.2205882353
C26: ⑧ | D26: 資格審査付入札評価結果（技術） | E26: 25 | F26: 25 | G26: 37 | H26: 87 | I26: 36 | J26: 24 | K26: 34 | L26: 13 | M26: 71 | N26: 83 | O26: 2.323529412
C27: ⑨ | D27: 資格審査付入札評価結果（一札） | E27: 1 | F27: 2 | G27: 0 | H27: 3 | I27: 0 | J27: 0 | K27: 2 | L27: 0 | M27: 2 | N27: 4 | O27: 0.07352941176
C28: ⑩ | D28: 契約 | E28: 21 | F28: 11 | G28: 15 | H28: 47 | I28: 138 | J28: 9 | K28: 12 | L28: 4 | M28: 25 | N28: 52 | O28: 1.058823529
B29: コンサルタン ト選定手続 | C29: ⑪ | D29: 招聘状 | E29: 18 | F29: 17 | G29: 11 | H29: 46 | I29: 78 | J29: 4 | K29: 13 | L29: 4 | M29: 21 | N29: 52 | O29: 0.9852941176
C30: ⑫ | D30: コンサルタント評価結果 | E30: 20 | F30: 33 | G30: 23 | H30: 76 | I30: 84 | J30: 18 | K30: 15 | L30: 11 | M30: 44 | N30: 84 | O30: 1.764705882
B31: き | C31: ⑬ | D31: 契約 | E31: 3 | F31: 9 | G31: 11 | H31: 23 | I31: 36 | J31: 3 | K31: 4 | L31: 1 | M31: 8 | N31: 25 | O31: 0.4558823529
E32: =SUM(E19:E31) -> 229 | F32: =SUM(F19:F31) -> 225 | G32: 223 | H32: 677 | I32: =SUM(I19:I31) -> 942 | J32: =SUM(J19:J31) -> 154 | K32: =SUM(K19:K31) -> 145 | L32: 73 | M32: 372 | N32: =SUM(N19:N31) -> 744
A33: ロットC(西語・仏語） | C33: 調達手続き | E33: 2020年度実績 | F33: 2021年度実績 | G33: 2022年度実績 | H33: 合計 | I33: 実施件数見込 | J33: 2020年度実績 | K33: 2021年度実績 | L33: 2022年度実績*11/29現在 | M33: 合計 | N33: 実施件数見込
B34: 本体/資機 | C34: ① | D34: 事前資格審査（Ｐ/Ｑ）書類 | E34: 3 | F34: 8 | G34: 0 | H34: =SUM(E34:G34) -> 11 | I34: 18 | J34: 3 | K34: 0 | L34: 0 | M34: =SUM(J34:L34) -> 3 | N34: 13 | O34: =(H34+M34)/68 -> 0.2058823529
C35: ② | D35: Ｐ/Ｑ評価結果 | E35: 5 | F35: 6 | G35: 5 | H35: =SUM(E35:G35) -> 16 | I35: 18 | J35: 2 | K35: 4 | L35: 0 | M35: =SUM(J35:L35) -> 6 | N35: 18 | O35: =(H35+M35)/68 -> 0.3235294118
C36: ③ | D36: 入札書類 | E36: 4 | F36: 6 | G36: 4 | H36: 14 | I36: 6 | J36: 0 | K36: 4 | L36: 0 | M36: 4 | N36: 17 | O36: 0.2647058824
C37: ④ | D37: 資格審査付入札書類 | E37: 2 | F37: 2 | G37: 3 | H37: 7 | I37: 12 | J37: 3 | K37: 0 | L37: 1 | M37: 4 | N37: 5 | O37: 0.1617647059
B38: 材・土木工 | C38: ⑤ | D38: 入札評価結果（技術評価） | E38: 7 | F38: 2 | G38: 6 | H38: 15 | I38: 0 | J38: 4 | K38: 1 | L38: 3 | M38: 8 | N38: 14 | O38: 0.3382352941
B39: 事施工業者 船体手続き | C39: ⑥ | D39: 入札評価結果（価格評価） | E39: 15 | F39: 3 | G39: 5 | H39: 23 | I39: 0 | J39: 5 | K39: 4 | L39: 3 | M39: 12 | N39: 25 | O39: 0.5147058824
C40: ⑦ | D40: 入札評価結果（一札） | E40: 0 | F40: 1 | G40: 0 | H40: 1 | I40: 24 | J40: 0 | K40: 0 | L40: 0 | M40: 0 | N40: 1 | O40: 0.01470588235
C41: ⑧ | D41: 資格審査付入札評価結果（技術） | E41: 10 | F41: 1 | G41: 0 | H41: 11 | I41: 12 | J41: 2 | K41: 2 | L41: 0 | M41: 4 | N41: 13 | O41: 0.2205882353
C42: ⑨ | D42: 資格審査付入札評価結果（一札） | E42: 1 | F42: 0 | G42: 1 | H42: 2 | I42: 0 | J42: 0 | K42: 0 | L42: 0 | M42: 0 | N42: 2 | O42: 0.02941176471
C43: ⑩ | D43: 契約 | E43: 15 | F43: 2 | G43: 13 | H43: 30 | I43: 12 | J43: 1 | K43: 10 | L43: 4 | M43: 15 | N43: 29 | O43: 0.6617647059
B44: コンサルタン ト選定手続 | C44: ⑪ | D44: 招聘状 | E44: 5 | F44: 2 | G44: 2 | H44: 9 | I44: 42 | J44: 3 | K44: 0 | L44: 1 | M44: 4 | N44: 11 | O44: 0.1911764706
C45: ⑫ | D45: コンサルタント評価結果 | E45: 8 | F45: 12 | G45: 3 | H45: 23 | I45: 18 | J45: 2 | K45: 3 | L45: 1 | M45: 6 | N45: 22 | O45: 0.4264705882
B46: き | C46: ⑬ | D46: 契約 | E46: 6 | F46: 6 | G46: 6 | H46: 18 | I46: 12 | J46: 1 | K46: 1 | L46: 1 | M46: 3 | N46: 16 | O46: 0.3088235294
E47: =SUM(E34:E46) -> 81 | F47: =SUM(F34:F46) -> 51 | G47: =SUM(G34:G46) -> 48 | H47: =SUM(E47:G47) -> 180 | I47: =SUM(I34:I46) -> 174 | J47: =SUM(J34:J46) -> 26 | K47: =SUM(K34:K46) -> 29 | L47: 14 | M47: =SUM(J47:L47) -> 69 | N47: =SUM(N34:N46) -> 186
A48: ロット合計 | H48: =SUM(H17+H32+H47) -> 1544 | I48: =SUM(I17+I32+I47) -> 1914 | M48: =SUM(M17+M32+M47) -> 784 | N48: =SUM(N17+N32+N47) -> 1645
